Workbook

Sheet ユーザー定義
A1: Y | B1: Normalize | C1: Key | D1: min | E1: max | F1: range | G1: PLAY
A2: =225-(15-ROW()+2)^2 -> 0 | B2: =IF(A2<>"",(A2-$D$2)/$F$2,"") -> 0 | C2: =IF(A2<>"",INT($D$4+(B2*$F$4)),"") -> 25 | D2: =MIN(A:A) -> 0 | E2: =MAX(A:A) -> 180 | F2: =E2-D2 -> 180
A3: 10 | B3: =IF(A3<>"",(A3-$D$2)/$F$2,"") -> 0.05555555556 | C3: =IF(A3<>"",INT($D$4+(B3*$F$4)),"") -> 28 | D3: Low | E3: High | F3: diff | G3: time
A4: 20 | B4: 0.1111111111 | C4: 31 | D4: 25 | E4: 85 | F4: =E4-D4 -> 60 | G4: 150
A5: 10 | B5: 0.05555555556 | C5: 28
A6: 30 | B6: 0.1666666667 | C6: 35
A7: 40 | B7: 0.2222222222 | C7: 38
A8: 30 | B8: 0.1666666667 | C8: 35
A9: 40 | B9: 0.2222222222 | C9: 38
A10: 50 | B10: 0.2777777778 | C10: 41
A11: 60 | B11: 0.3333333333 | C11: 45
A12: 50 | B12: 0.2777777778 | C12: 41
A13: 60 | B13: 0.3333333333 | C13: 45
A14: 70 | B14: 0.3888888889 | C14: 48
A15: 80 | B15: 0.4444444444 | C15: 51
A16: 90 | B16: 0.5 | C16: 55
A17: 80 | B17: 0.4444444444 | C17: 51
A18: 90 | B18: 0.5 | C18: 55
A19: 100 | B19: 0.5555555556 | C19: 58
A20: 120 | B20: 0.6666666667 | C20: 65
A21: 140 | B21: 0.7777777778 | C21: 71
A22: 180 | B22: 1 | C22: 85

Sheet 放物線
A1: Y | B1: Normalize | C1: Key | D1: min | E1: max | F1: range | G1: PLAY
A2: =225-(15-ROW()+2)^2 -> 0 | B2: =IF(A2<>"",(A2-$D$2)/$F$2,"") -> 0 | C2: =IF(A2<>"",INT($D$4+(B2*$F$4)),"") -> 25 | D2: =MIN(A:A) -> 0 | E2: =MAX(A:A) -> 225 | F2: =E2-D2 -> 225
A3: =225-(15-ROW()+2)^2 -> 29 | B3: =IF(A3<>"",(A3-$D$2)/$F$2,"") -> 0.1288888889 | C3: =IF(A3<>"",INT($D$4+(B3*$F$4)),"") -> 32 | D3: Low | E3: High | F3: diff | G3: time
A4: 56 | B4: 0.2488888889 | C4: 39 | D4: 25 | E4: 85 | F4: =E4-D4 -> 60 | G4: 150
A5: 81 | B5: 0.36 | C5: 46
A6: 104 | B6: 0.4622222222 | C6: 52
A7: 125 | B7: 0.5555555556 | C7: 58
A8: 144 | B8: 0.64 | C8: 63
A9: 161 | B9: 0.7155555556 | C9: 67
A10: 176 | B10: 0.7822222222 | C10: 71
A11: 189 | B11: 0.84 | C11: 75
A12: 200 | B12: 0.8888888889 | C12: 78
A13: 209 | B13: 0.9288888889 | C13: 80
A14: 216 | B14: 0.96 | C14: 82
A15: 221 | B15: 0.9822222222 | C15: 83
A16: 224 | B16: 0.9955555556 | C16: 84
A17: 225 | B17: 1 | C17: 85
A18: 224 | B18: 0.9955555556 | C18: 84
A19: 221 | B19: 0.9822222222 | C19: 83
A20: 216 | B20: 0.96 | C20: 82
A21: 209 | B21: 0.9288888889 | C21: 80
A22: 200 | B22: 0.8888888889 | C22: 78
A23: 189 | B23: 0.84 | C23: 75
A24: 176 | B24: 0.7822222222 | C24: 71
A25: 161 | B25: 0.7155555556 | C25: 67
A26: 144 | B26: 0.64 | C26: 63
A27: 125 | B27: 0.5555555556 | C27: 58
A28: 104 | B28: 0.4622222222 | C28: 52
A29: 81 | B29: 0.36 | C29: 46
A30: 56 | B30: 0.2488888889 | C30: 39
A31: 29 | B31: 0.1288888889 | C31: 32
A32: 0 | B32: 0 | C32: 25

Sheet 二次関数(右辺)
A1: Y | B1: Normalize | C1: Key | D1: min | E1: max | F1: range | G1: PLAY
A2: =(ROW()-2)^2 -> 0 | B2: =IF(A2<>"",(A2-$D$2)/$F$2,"") -> 0 | C2: =IF(A2<>"",INT($D$4+(B2*$F$4)),"") -> 25 | D2: =MIN(A:A) -> 0 | E2: =MAX(A:A) -> 676 | F2: =E2-D2 -> 676
A3: =(ROW()-2)^2 -> 1 | B3: =IF(A3<>"",(A3-$D$2)/$F$2,"") -> 0.001479289941 | C3: =IF(A3<>"",INT($D$4+(B3*$F$4)),"") -> 25 | D3: Low | E3: High | F3: diff | G3: time
A4: 4 | B4: 0.005917159763 | C4: 25 | D4: 25 | E4: 85 | F4: =E4-D4 -> 60 | G4: 100
A5: 9 | B5: 0.01331360947 | C5: 25
A6: 16 | B6: 0.02366863905 | C6: 26
A7: 25 | B7: 0.03698224852 | C7: 27
A8: 36 | B8: 0.05325443787 | C8: 28
A9: 49 | B9: 0.0724852071 | C9: 29
A10: 64 | B10: 0.09467455621 | C10: 30
A11: 81 | B11: 0.1198224852 | C11: 32
A12: 100 | B12: 0.1479289941 | C12: 33
A13: 121 | B13: 0.1789940828 | C13: 35
A14: 144 | B14: 0.2130177515 | C14: 37
A15: 169 | B15: 0.25 | C15: 40
A16: 196 | B16: 0.2899408284 | C16: 42
A17: 225 | B17: 0.3328402367 | C17: 44
A18: 256 | B18: 0.3786982249 | C18: 47
A19: 289 | B19: 0.4275147929 | C19: 50
A20: 324 | B20: 0.4792899408 | C20: 53
A21: 361 | B21: 0.5340236686 | C21: 57
A22: 400 | B22: 0.5917159763 | C22: 60
A23: 441 | B23: 0.6523668639 | C23: 64
A24: 484 | B24: 0.7159763314 | C24: 67
A25: 529 | B25: 0.7825443787 | C25: 71
A26: 576 | B26: 0.8520710059 | C26: 76
A27: 625 | B27: 0.924556213 | C27: 80
A28: 676 | B28: 1 | C28: 85

Sheet 二次関数(両辺)
A1: Y | B1: Normalize | C1: Key | D1: min | E1: max | F1: range | G1: PLAY
A2: =(ROW()-15)^2 -> 169 | B2: =IF(A2<>"",(A2-$D$2)/$F$2,"") -> 1 | C2: =IF(A2<>"",INT($D$4+(B2*$F$4)),"") -> 85 | D2: =MIN(A:A) -> 0 | E2: =MAX(A:A) -> 169 | F2: =E2-D2 -> 169
A3: =(ROW()-15)^2 -> 144 | B3: =IF(A3<>"",(A3-$D$2)/$F$2,"") -> 0.8520710059 | C3: =IF(A3<>"",INT($D$4+(B3*$F$4)),"") -> 76 | D3: Low | E3: High | F3: diff | G3: time
A4: 121 | B4: 0.7159763314 | C4: 67 | D4: 25 | E4: 85 | F4: =E4-D4 -> 60 | G4: 100
A5: 100 | B5: 0.5917159763 | C5: 60
A6: 81 | B6: 0.4792899408 | C6: 53
A7: 64 | B7: 0.3786982249 | C7: 47
A8: 49 | B8: 0.2899408284 | C8: 42
A9: 36 | B9: 0.2130177515 | C9: 37
A10: 25 | B10: 0.1479289941 | C10: 33
A11: 16 | B11: 0.09467455621 | C11: 30
A12: 9 | B12: 0.05325443787 | C12: 28
A13: 4 | B13: 0.02366863905 | C13: 26
A14: 1 | B14: 0.005917159763 | C14: 25
A15: 0 | B15: 0 | C15: 25
A16: 1 | B16: 0.005917159763 | C16: 25
A17: 4 | B17: 0.02366863905 | C17: 26
A18: 9 | B18: 0.05325443787 | C18: 28
A19: 16 | B19: 0.09467455621 | C19: 30
A20: 25 | B20: 0.1479289941 | C20: 33
A21: 36 | B21: 0.2130177515 | C21: 37
A22: 49 | B22: 0.2899408284 | C22: 42
A23: 64 | B23: 0.3786982249 | C23: 47
A24: 81 | B24: 0.4792899408 | C24: 53
A25: 100 | B25: 0.5917159763 | C25: 60
A26: 121 | B26: 0.7159763314 | C26: 67
A27: 144 | B27: 0.8520710059 | C27: 76
A28: 169 | B28: 1 | C28: 85

Sheet 反比例
A1: Y | B1: Normalize | C1: Key | D1: min | E1: max | F1: range | G1: PLAY
A2: =10/ROW() -> 5 | B2: =IF(A2<>"",(A2-$D$2)/$F$2,"") -> 1 | C2: =IF(A2<>"",INT($D$4+(B2*$F$4)),"") -> 85 | D2: =MIN(A:A) -> 0.303030303 | E2: =MAX(A:A) -> 5 | F2: =E2-D2 -> 4.696969697
A3: =10/ROW() -> 3.333333333 | B3: =IF(A3<>"",(A3-$D$2)/$F$2,"") -> 0.6451612903 | C3: =IF(A3<>"",INT($D$4+(B3*$F$4)),"") -> 63 | D3: Low | E3: High | F3: diff | G3: time
A4: 2.5 | B4: 0.4677419355 | C4: 53 | D4: 25 | E4: 85 | F4: =E4-D4 -> 60 | G4: 100
A5: 2 | B5: 0.3612903226 | C5: 46
A6: 1.666666667 | B6: 0.2903225806 | C6: 42
A7: 1.428571429 | B7: 0.2396313364 | C7: 39
A8: 1.25 | B8: 0.2016129032 | C8: 37
A9: 1.111111111 | B9: 0.1720430108 | C9: 35
A10: 1 | B10: 0.1483870968 | C10: 33
A11: 0.9090909091 | B11: 0.1290322581 | C11: 32
A12: 0.8333333333 | B12: 0.1129032258 | C12: 31
A13: 0.7692307692 | B13: 0.09925558313 | C13: 30
A14: 0.7142857143 | B14: 0.08755760369 | C14: 30
A15: 0.6666666667 | B15: 0.07741935484 | C15: 29
A16: 0.625 | B16: 0.0685483871 | C16: 29
A17: 0.5882352941 | B17: 0.06072106262 | C17: 28
A18: 0.5555555556 | B18: 0.05376344086 | C18: 28
A19: 0.5263157895 | B19: 0.04753820034 | C19: 27
A20: 0.5 | B20: 0.04193548387 | C20: 27
A21: 0.4761904762 | B21: 0.03686635945 | C21: 27
A22: 0.4545454545 | B22: 0.03225806452 | C22: 26
A23: 0.4347826087 | B23: 0.02805049088 | C23: 26
A24: 0.4166666667 | B24: 0.02419354839 | C24: 26
A25: =10/ROW() -> 0.4 | B25: 0.02064516129 | C25: 26
A26: 0.3846153846 | B26: 0.01736972705 | C26: 26
A27: 0.3703703704 | B27: 0.01433691756 | C27: 25
A28: 0.3571428571 | B28: 0.01152073733 | C28: 25
A29: 0.3448275862 | B29: 0.008898776418 | C29: 25
A30: 0.3333333333 | B30: 0.006451612903 | C30: 25
A31: 0.3225806452 | B31: 0.004162330905 | C31: 25
A32: 0.3125 | B32: 0.002016129032 | C32: 25
A33: 0.303030303 | B33: 0 | C33: 25

Sheet 正比例
A1: Y | B1: Normalize | C1: Key | D1: min | E1: max | F1: range | G1: PLAY
A2: 0 | B2: =IF(A2<>"",(A2-$D$2)/$F$2,"") -> 0 | C2: =IF(A2<>"",INT($D$4+(B2*$F$4)),"") -> 25 | D2: =MIN(A:A) -> 0 | E2: =MAX(A:A) -> 240 | F2: =E2-D2 -> 240
A3: =A2+10 -> 10 | B3: =IF(A3<>"",(A3-$D$2)/$F$2,"") -> 0.04166666667 | C3: =IF(A3<>"",INT($D$4+(B3*$F$4)),"") -> 27 | D3: Low | E3: High | F3: diff | G3: time
A4: =A3+10 -> 20 | B4: 0.08333333333 | C4: 29 | D4: 25 | E4: 80 | F4: =E4-D4 -> 55 | G4: 100
A5: 30 | B5: 0.125 | C5: 31
A6: 40 | B6: 0.1666666667 | C6: 34
A7: 50 | B7: 0.2083333333 | C7: 36
A8: 60 | B8: 0.25 | C8: 38
A9: 70 | B9: 0.2916666667 | C9: 41
A10: 80 | B10: 0.3333333333 | C10: 43
A11: 90 | B11: 0.375 | C11: 45
A12: 100 | B12: 0.4166666667 | C12: 47
A13: 110 | B13: 0.4583333333 | C13: 50
A14: 120 | B14: 0.5 | C14: 52
A15: 130 | B15: 0.5416666667 | C15: 54
A16: 140 | B16: 0.5833333333 | C16: 57
A17: 150 | B17: 0.625 | C17: 59
A18: 160 | B18: 0.6666666667 | C18: 61
A19: 170 | B19: 0.7083333333 | C19: 63
A20: 180 | B20: 0.75 | C20: 66
A21: 190 | B21: 0.7916666667 | C21: 68
A22: 200 | B22: 0.8333333333 | C22: 70
A23: 210 | B23: 0.875 | C23: 73
A24: 220 | B24: 0.9166666667 | C24: 75
A25: 230 | B25: 0.9583333333 | C25: 77
A26: 240 | B26: 1 | C26: 80

Sheet サインカーブ
A1: Y | B1: Normalize | C1: Key | D1: min | E1: max | F1: range | G1: PLAY
A2: 0 | B2: =IF(A2<>"",(A2-$D$2)/$F$2,"") -> 0.5 | C2: =IF(A2<>"",INT($D$4+(B2*$F$4)),"") -> 47 | D2: =MIN(A:A) -> -1 | E2: =MAX(A:A) -> 1 | F2: =E2-D2 -> 2
A3: 0.2588190451 | B3: =IF(A3<>"",(A3-$D$2)/$F$2,"") -> 0.6294095226 | C3: =IF(A3<>"",INT($D$4+(B3*$F$4)),"") -> 50 | D3: Low | E3: High | F3: diff | G3: time
A4: 0.5 | B4: 0.75 | C4: 53 | D4: 35 | E4: 60 | F4: =E4-D4 -> 25 | G4: 100
A5: 0.7071067812 | B5: 0.8535533906 | C5: 56
A6: 0.8660254038 | B6: 0.9330127019 | C6: 58
A7: 0.9659258263 | B7: 0.9829629131 | C7: 59
A8: 1 | B8: 1 | C8: 60
A9: 0.9659258263 | B9: 0.9829629131 | C9: 59
A10: 0.8660254038 | B10: 0.9330127019 | C10: 58
A11: 0.7071067812 | B11: 0.8535533906 | C11: 56
A12: 0.5 | B12: 0.75 | C12: 53
A13: 0.2588190451 | B13: 0.6294095226 | C13: 50
A14: 1.225148455e-16 | B14: 0.5 | C14: 47
A15: -0.2588190451 | B15: 0.3705904774 | C15: 44
A16: -0.5 | B16: 0.25 | C16: 41
A17: -0.7071067812 | B17: 0.1464466094 | C17: 38
A18: -0.8660254038 | B18: 0.06698729811 | C18: 36
A19: -0.9659258263 | B19: 0.01703708686 | C19: 35
A20: -1 | B20: 0 | C20: 35
A21: -0.9659258263 | B21: 0.01703708686 | C21: 35
A22: -0.8660254038 | B22: 0.06698729811 | C22: 36
A23: -0.7071067812 | B23: 0.1464466094 | C23: 38
A24: -0.5 | B24: 0.25 | C24: 41
A25: -0.2588190451 | B25: 0.3705904774 | C25: 44
A26: -2.45029691e-16 | B26: 0.5 | C26: 47

Sheet 使い方
A1: １ ツールの名称 | B1: SoundGraph(さうんどぐらふ) Ver 1.12
A2: ２ 目的 | B2: グラフを音で聞く
A3: ３ 各シート
A4: ユーザー定義 | B4: ユーザー自身が数値を入力してグラフを描画し音で聞く。
A5: 正比例 | B5: 正比例のグラフ
A6: 反比例 | B6: 反比例のグラフ
A7: 放物線 | B7: 放物線のグラフ
A8: 二次関数 | B8: 二次関数のグラフ
A9: 使い方 | B9: このシート
A10: ４ 操作方法 | B10: 各シートでG1セルをクリックするとそのシートのグラフの音が鳴る。
B11: ユーザー定義シートではA2からA33までのセルに数値を入力できる。
B12: D4セルは鳴らしたい最も低い音を、E４セルには最も高い音の番号を入力する。
B13: G４セルには一つの音の長さをmsec単位で入力する。
A14: ご意見こちらまで | B14: Dr.dbTarzan@gmail.com
B15: 高橋信行

Sheet piano (hidden)
A1: 鍵盤 | B1: 周波数 | C1: 音階名※
A2: 番号 | B2: (Hz)
A3: 1 | B3: 27.5 | C3: ラ0 | D3: A0
A4: 2 | B4: 29.135 | C4: ラ#0 | D4: A#0
A5: 3 | B5: 30.868 | C5: シ0 | D5: B0
A6: 4 | B6: 32.703 | C6: ド1 | D6: C1
A7: 5 | B7: 34.648 | C7: ド#1 | D7: C#1
A8: 6 | B8: 36.708 | C8: レ1 | D8: D1
A9: 7 | B9: 38.891 | C9: レ#1 | D9: D#1
A10: 8 | B10: 41.203 | C10: ミ1 | D10: E1
A11: 9 | B11: 43.654 | C11: ファ1 | D11: F1
A12: 10 | B12: 46.249 | C12: ファ#1 | D12: F#1
A13: 11 | B13: 48.999 | C13: ソ1 | D13: G1
A14: 12 | B14: 51.913 | C14: ソ#1 | D14: G#1
A15: 13 | B15: 55 | C15: ラ1 | D15: A1
A16: 14 | B16: 58.27 | C16: ラ#1 | D16: A#1
A17: 15 | B17: 61.735 | C17: シ1 | D17: B1
A18: 16 | B18: 65.406 | C18: ド2 | D18: C2
A19: 17 | B19: 69.296 | C19: ド#2 | D19: C#2
A20: 18 | B20: 73.416 | C20: レ2 | D20: D2
A21: 19 | B21: 77.782 | C21: レ#2 | D21: D#2
A22: 20 | B22: 82.407 | C22: ミ2 | D22: E2
A23: 21 | B23: 87.307 | C23: ファ2 | D23: F2
A24: 22 | B24: 92.499 | C24: ファ#2 | D24: F#2
A25: 23 | B25: 97.999 | C25: ソ2 | D25: G2
A26: 24 | B26: 103.826 | C26: ソ#2 | D26: G#2
A27: 25 | B27: 110 | C27: ラ2 | D27: A2
A28: 26 | B28: 116.541 | C28: ラ#2 | D28: A#2
A29: 27 | B29: 123.471 | C29: シ2 | D29: B2
A30: 28 | B30: 130.813 | C30: ド3 | D30: C3
A31: 29 | B31: 138.591 | C31: ド#3 | D31: C#3
A32: 30 | B32: 146.832 | C32: レ3 | D32: D3
A33: 31 | B33: 155.563 | C33: レ#3 | D33: D#3
A34: 32 | B34: 164.814 | C34: ミ3 | D34: E3
A35: 33 | B35: 174.614 | C35: ファ3 | D35: F3
A36: 34 | B36: 184.997 | C36: ファ#3 | D36: F#3
A37: 35 | B37: 195.998 | C37: ソ3 | D37: G3
A38: 36 | B38: 207.652 | C38: ソ#3 | D38: G#3
A39: 37 | B39: 220 | C39: ラ3 | D39: A3
A40: 38 | B40: 233.082 | C40: ラ#3 | D40: A#3
A41: 39 | B41: 246.942 | C41: シ3 | D41: B3
A42: 40 | B42: 261.626 | C42: ド4 | D42: C4
A43: 41 | B43: 277.183 | C43: ド#4 | D43: C#4
A44: 42 | B44: 293.665 | C44: レ4 | D44: D4
A45: 43 | B45: 311.127 | C45: レ#4 | D45: D#4
A46: 44 | B46: 329.628 | C46: ミ4 | D46: E4
A47: 45 | B47: 349.228 | C47: ファ4 | D47: F4
A48: 46 | B48: 369.994 | C48: ファ#4 | D48: F#4
A49: 47 | B49: 391.995 | C49: ソ4 | D49: G4
A50: 48 | B50: 415.305 | C50: ソ#4 | D50: G#4
A51: 49 | B51: 440 | C51: ラ4 | D51: A4
A52: 50 | B52: 466.164 | C52: ラ#4 | D52: A#4
A53: 51 | B53: 493.883 | C53: シ4 | D53: B4
A54: 52 | B54: 523.251 | C54: ド5 | D54: C5
A55: 53 | B55: 554.365 | C55: ド#5 | D55: C#5
A56: 54 | B56: 587.33 | C56: レ5 | D56: D5
A57: 55 | B57: 622.254 | C57: レ#5 | D57: D#5
A58: 56 | B58: 659.255 | C58: ミ5 | D58: E5
A59: 57 | B59: 698.456 | C59: ファ5 | D59: F5
A60: 58 | B60: 739.989 | C60: ファ#5 | D60: F#5
A61: 59 | B61: 783.991 | C61: ソ5 | D61: G5
A62: 60 | B62: 830.609 | C62: ソ#5 | D62: G#5
A63: 61 | B63: 880 | C63: ラ5 | D63: A5
A64: 62 | B64: 932.328 | C64: ラ#5 | D64: A#5
A65: 63 | B65: 987.767 | C65: シ5 | D65: B5
A66: 64 | B66: 1046.502 | C66: ド6 | D66: C6
A67: 65 | B67: 1108.731 | C67: ド#6 | D67: C#6
A68: 66 | B68: 1174.659 | C68: レ6 | D68: D6
A69: 67 | B69: 1244.508 | C69: レ#6 | D69: D#6
A70: 68 | B70: 1318.51 | C70: ミ6 | D70: E6
A71: 69 | B71: 1396.913 | C71: ファ6 | D71: F6
A72: 70 | B72: 1479.978 | C72: ファ#6 | D72: F#6
A73: 71 | B73: 1567.982 | C73: ソ6 | D73: G6
A74: 72 | B74: 1661.219 | C74: ソ#6 | D74: G#6
A75: 73 | B75: 1760 | C75: ラ6 | D75: A6
A76: 74 | B76: 1864.655 | C76: ラ#6 | D76: A#6
A77: 75 | B77: 1975.533 | C77: シ6 | D77: B6
A78: 76 | B78: 2093.005 | C78: ド7 | D78: C7
A79: 77 | B79: 2217.461 | C79: ド#7 | D79: C#7
A80: 78 | B80: 2349.318 | C80: レ7 | D80: D7
A81: 79 | B81: 2489.016 | C81: レ#7 | D81: D#7
A82: 80 | B82: 2637.02 | C82: ミ7 | D82: E7
A83: 81 | B83: 2793.826 | C83: ファ7 | D83: F7
A84: 82 | B84: 2959.955 | C84: ファ#7 | D84: F#7
A85: 83 | B85: 3135.963 | C85: ソ7 | D85: G7
A86: 84 | B86: 3322.438 | C86: ソ#7 | D86: G#7
A87: 85 | B87: 3520 | C87: ラ7 | D87: A7
A88: 86 | B88: 3729.31 | C88: ラ#7 | D88: A#7
A89: 87 | B89: 3951.066 | C89: シ7 | D89: B7
A90: 88 | B90: 4186.009 | C90: ド8 | D90: C8
A92: ※音階名は国際式音名表記です。
A94: 人間が聞くことが出来る周波数は、個人差や年齢差はありますが20Hz～20000Hzと言われています。
A95: 聴力は年齢を重ねるとともに衰えていき、とくに高い周波数の音が聞こえづらくなっていき、15000Hz以上の音は２０代後半ごろよりだんだん聞こえなくなるようです。
A96: 下記の周波数音も、どのように聞こえるかお試しください。
A98: 5000Hzを聴く
A100: 10000Hzを聴く 15000Hzを聴く 20000Hzを聴く
A102: h51602
A104: ｜鍵盤｜譜面｜１１２鍵｜音階｜ サイトマップ｜ホーム｜
